{"text_format":"1","workbook":"xlsx","n_sheets":8,"sheets":["Navigatie","Voertuig","Bedrijf","Rijdend personeel","CIRCUIT","Personeelskost","Kostprijs en Verkoopprijs","Bijlage 4bis"],"not_rendered":{"charts":0,"images":2,"macros":1,"external_links":0,"defined_names":7,"comments":2,"pivot_tables":0},"unopened":[],"bounds":{"document_bytes":16777216,"sheet_cells":100000,"rows_first":2000,"rows_last":500,"rows_between":2000,"halvings":0,"cell_chars":16384,"cell_head_chars":4096},"cells_cut":0,"cells_raw":0,"read":"whole","date_system":"1900"}

{"sheet":"Navigatie","index":0,"n_rows":12,"n_cols":4,"rows_kept":12,"cut":false,"hidden":false,"merged":[[11,3,11,5],[9,3,9,5],[10,3,10,5],[1,1,1,6],[5,3,5,5],[6,3,6,5],[7,3,7,5],[8,3,8,5]]}
[]
[null,"ICB Prijscalculator BS"]
[]
[null,null,"Navigatie"]
[]
[null,null,null,"1. Input van gegevens over het voertuig"]
[null,null,null,"2. Input van gegevens over het bedrijf"]
[null,null,null,"3. Input van gegevens over het rijdend personeel"]
[null,null,null,"4. Input van gegevens over het circuit"]
[null,null,null,"5. Berekening van de loonkost"]
[null,null,null,"6. Berekening van de totale kostprijs en de verkoopprijs"]
[null,null,null,"7. Bijlage 4bis"]

{"sheet":"Voertuig","index":1,"n_rows":99,"n_cols":22,"rows_kept":99,"cut":false,"hidden":false,"merged":[[93,1,93,19],[33,19,35,19]]}
[]
[]
[null,null,null,"Datum invoer van de gegevens:",null,null,null,null,null,null,null,"Voertuiggegevens"]
[]
[]
[null,null,null,null,null,null,null,"VOERTUIG 1",null,"VOERTUIG 2",null,"VOERTUIG 3",null,"VOERTUIG 4",null,"VOERTUIG 5",null,"VOERTUIG 6"]
[]
[null,null,null,"Naam van het voertuig",null,null,null,"Mercedes Sprinter 23pl",null,"Iveco 36pl",null,"Iveco 38pl",null,"Mercedes Atego 40pl",null,"Mercedes Intouro 55pl",null,"Mercedes Intouro 65pl"]
[null,null,"1. AFSCHRIJVING"]
[null,null,null,"Eigendom of leasing?",null,null,null,null,null,null,null,null,null,null,null,null,null,null,null,null,null,"Aankoop"]
[null,null,null,null,null,null,null,null,null,null,null,null,null,null,null,null,null,null,null,null,null,"Leasing"]
[null,null,null,"Aankoopprijs:",null,null,null,2,null,1,null,1,null,1,null,1,null,1]
[]
[null,null,null,"Maandelijks leasebedrag:",null,null,null,null,null,null,null,null,null,null,null,null,null,null,null,"Indien van toepassing"]
[]
[null,null,null,"Aankoopprijs:",null,null,null,null,null,null,null,null,null,null,null,null,null,null,null,"oorspronkelijke aankoopprijs van het voertuig"]
[]
[null,null,null,"Residuele waarde:",null,null,null,null,null,null,null,null,null,null,null,null,null,null,null,"restwaarde van het voertuig wanneer het verkocht zal worden (in procent van de aankoopprijs)"]
[]
[null,null,null,"Levensduur in jaren:",null,null,null,null,null,null,null,null,null,null,null,null,null,null,null,"aantal jaren dat het voertuig normaal gezien zal halen in het bedrijf"]
[]
[null,null,null,"Levensduur in kilometers:",null,null,null,null,null,null,null,null,null,null,null,null,null,null,null,"aantal kilometers dat het voertuig normaal gezien zal halen in het bedrijf "]
[]
[null,null,null,"Gebruiksdagen per jaar:",null,null,null,null,null,null,null,null,null,null,null,null,null,null,null,"gemiddeld aantal gebruiksdagen per jaar van het voertuig"]
[]
[null,null,null,"Afgelegde kilometers per jaar:",null,null,null,null,null,null,null,null,null,null,null,null,null,null,null,"aantal kilometers dat u gemiddeld aflegt met het voertuig per jaar"]
[]
[null,null,"2. FINANCIERING"]
[]
[null,null,null,"Rentevoet lening voertuig:",null,null,null,null,null,null,null,null,null,null,null,null,null,null,null,"rentevoet van de lening voor het voertuig (indien van toepassing)"]
[]
[null,null,null,"Percentage autofinanciering voertuig:",null,null,null,null,null,null,null,null,null,null,null,null,null,null,null,"percentage van de aankoopwaarde van het voertuig dat met eigen kapitaal gefinancierd wordt"]
[]
[null,null,null,"Risicoloze rentevoet:",null,null,null,null,null,null,null,null,null,null,null,null,null,null,null,"voer hier de rentevoet in die u zou bekomen indien u eigen kapitaal risicoloos zou beleggen (bv. rentevoet op staatslening, kasbon of spaarboekje) - voor de berekening van de opportuniteitskost"]
[]
[null,null,"3. VERBRUIK"]
[]
[null,null,null,"Verbruik diesel:",null,null,null,null,null,null,null,null,null,null,null,null,null,null,null,"liters/100 km"]
[]
[null,null,null,"Gebruikte olie:",null,null,null,null,null,null,null,null,null,null,null,null,null,null,null,"liters/100 km"]
[]
[null,null,null,"Verbruik Adblue:",null,null,null,null,null,null,null,null,null,null,null,null,null,null,null,"liters/100 km"]
[]
[null,null,"4. BANDEN"]
[]
[null,null,null,"Aantal banden vooraan:"]
[]
[null,null,null,"Aantal banden achteraan:"]
[]
[null,null,null,"Levensduur banden vooraan:",null,null,null,null,null,null,null,null,null,null,null,null,null,null,null,"uitgedrukt in km"]
[]
[null,null,null,"Levensduur banden achteraan:",null,null,null,null,null,null,null,null,null,null,null,null,null,null,null,"uitgedrukt in km"]
[]
[null,null,null,"Eenheidsprijs banden:",null,150]
[]
[null,null,"5.  VERZEKERINGEN"]
[]
[null,null,null,"Premie BA voertuig:"]
[]
[null,null,null,"Premie brandverzekering voertuig:"]
[]
[null,null,null,"Verzekering eigen schade:"]
[]
[null,null,null,"Verzekering diefstal:"]
[]
[null,null,null,"Rechtsbijstand:"]
[]
[null,null,null,"Bijstand voertuig:"]
[]
[null,null,null,"Glasbraak:"]
[]
[null,null,null,"Eventuele andere verzekeringen:"]
[]
[]
[null,null,"6. JAARLIJKSE ONDERHOUDSKOSTEN"]
[]
[null,null,null,"Onderhoud en herstellingen door derden",null,null,null,null,null,null,null,null,null,null,null,null,null,null,null,"Bedrag per jaar voor onderhoud van het voertuig uitgevoerd buiten het bedrijf"]
[]
[null,null,null,"Wisselstukken",null,null,null,null,null,null,null,null,null,null,null,null,null,null,null,"Voer hier het bedrag in dat u per jaar betaald voor wisselstukken voor dit voertuig"]
[]
[null,null,"7. ANDERE KOSTEN VERBONDEN AAN HET VOERTUIG"]
[]
[null,null,null,"Technische keuring:",null,90,null,null,null,null,null,null,null,null,null,null,null,null,null,"Kost van 1 keuring"]
[]
[null,null,null,"Geschat aantal keuringen per jaar:",null,null,null,null,null,null,null,null,null,null,null,null,null,null,null,"Geschat aantal keer per jaar dat het voertuig naar de keuring moet (rood keuringsbewijs: verkorte periodiciteit)"]
[]
[null,null,null,"Lidmaatschap voertuig FBAA:",null,50]
[]
[null,null,null,"Overige vaste kosten voertuig:",null,null,null,null,null,null,null,null,null,null,null,null,null,null,null,"Voer hier overige directe kosten betreffende het voertuig in die nog niet werden verrekend in één van voorgaande posten"]
[]
[null,null,"1 Indien u uw voertuig zowel voor ongeregelde als geregelde diensten gebruikt dient u de gegevens voor beide activiteiten samen in te geven."]
[null,null,"2 Hou hier rekening met het werkelijke aantal jaren dat het voertuig in het bedrijf blijft, niet met de boekhoudkundige afschrijving"]
[]
[]
[]
[]
[null,null,null,"Optie 1",null,null,null,{"$f":"IF(#REF!=0,1,#REF!)","v":{"$error":"#REF!"}},null,{"$f":"IF(#REF!=0,1,#REF!)","v":{"$error":"#REF!"}},null,{"$f":"IF(#REF!=0,1,#REF!)","v":{"$error":"#REF!"}},null,{"$f":"IF(#REF!=0,1,#REF!)","v":{"$error":"#REF!"}},null,{"$f":"IF(#REF!=0,1,#REF!)","v":{"$error":"#REF!"}},null,{"$f":"IF(#REF!=0,1,#REF!)","v":{"$error":"#REF!"}}]
[null,null,null,"Optie 2",null,null,null,{"$f":"IF(#REF!=0,1,#REF!)","v":{"$error":"#REF!"}},null,{"$f":"IF(#REF!=0,1,#REF!)","v":{"$error":"#REF!"}},null,{"$f":"IF(#REF!=0,1,#REF!)","v":{"$error":"#REF!"}},null,{"$f":"IF(#REF!=0,1,#REF!)","v":{"$error":"#REF!"}},null,{"$f":"IF(#REF!=0,1,#REF!)","v":{"$error":"#REF!"}},null,{"$f":"IF(#REF!=0,1,#REF!)","v":{"$error":"#REF!"}}]
[null,null,null,"Optie 3",null,null,null,{"$f":"IF(#REF!=0,1,#REF!)","v":{"$error":"#REF!"}},null,{"$f":"IF(#REF!=0,1,#REF!)","v":{"$error":"#REF!"}},null,{"$f":"IF(#REF!=0,1,#REF!)","v":{"$error":"#REF!"}},null,{"$f":"IF(#REF!=0,1,#REF!)","v":{"$error":"#REF!"}},null,{"$f":"IF(#REF!=0,1,#REF!)","v":{"$error":"#REF!"}},null,{"$f":"IF(#REF!=0,1,#REF!)","v":{"$error":"#REF!"}}]

{"sheet":"Bedrijf","index":2,"n_rows":58,"n_cols":9,"rows_kept":58,"cut":false,"hidden":false,"merged":[[61,1,61,8]]}
[]
[]
[null,null,"Datum invoer gegevens:",null,null,null,"Bedrijfsgegevens*"]
[]
[null,null,"* In het geval het bedrijf niet enkel bijzondere diensten uitvoert: probeer in the schatten welk deel van deze kosten toe te wijzen is aan de activiteit bijzondere diensten!"]
[]
[null,null,"1. VLOOT BIJZONDERE DIENSTEN"]
[]
[null,null,null,null,"Aantal voertuigen ingezet voor bijzondere diensten:",null,null,null,"Totaal aantal voertuigen in het bedrijf"]
[]
[null,null,null,null,"Gemiddeld aantal gebruiksdagen per voertuig per jaar:"]
[]
[null,null,null,null,"Totaal aantal kilometers volledige vloot per jaar"]
[]
[null,null,"2. ONDERHOUD"]
[]
[]
[null,null,null,null,"Garagepersoneel",null,null,null,"Voer hier de jaarlijkse loonkost in van alle mecaniciens tewerkgesteld in het bedrijf"]
[]
[null,null,"3. VERBRUIK"]
[]
[null,null,null,null,"Prijs diesel",null,null,null,"Prijs per liter"]
[]
[null,null,null,null,"Prijs olie",null,null,null,"Prijs per liter"]
[]
[null,null,null,null,"Prijs adblue",null,null,null,"Prijs per liter"]
[]
[null,null,"4. INFRASTRUCTUURKOSTEN"]
[]
[null,null,null,null,"Stelplaats en gebouwen",null,null,null,"Jaarlijkse kosten  gebonden aan het gebruik van de stelplaats en gebouwen (huur, afschrijvingen, financiering …)"]
[]
[null,null,null,null,"Hulpvoertuigen",null,null,null,"Jaarlijkse kost van de hulpvoertuigen (bedrijfsbestelwagentje, …)"]
[]
[null,null,null,null,"Nutsvoorzieningen en verwarming",null,null,null,"Jaarlijkse kost van elektriciteit, water, gas, mazout, telefoon, internet, …"]
[]
[null,null,null,null,"Carwash",null,null,null,"Jaarlijkse kost interne of externe carwash (producten, afschrijving, externe carwash,…)"]
[]
[null,null,"5. ADMINISTRATIEKOSTEN"]
[]
[null,null,null,null,"Bedrijfsverzekeringen",null,null,null,"Jaarlijkse kost verzekeringen  niet gelinkt  aan specifiek voertuig (brand gebouwen, exploitatie, beroepsaansprakelijkheid,…)"]
[]
[null,null,null,null,"Informaticakosten",null,null,null,"Jaarlijkse kost"]
[]
[null,null,null,null,"Overige bureelkosten",null,null,null,"Jaarlijkse kost papier, inktpatronen, …"]
[]
[null,null,null,null,"Bedienden",null,null,null,"Totale jaarlijkse loonkost"]
[]
[null,null,null,null,"Zaakvoerder",null,null,null,"Jaarlijkse loonkost"]
[]
[null,null,null,null,"Sociaal Secretariaat",null,null,null,"Jaarlijkse kost voor alle werknemers samen"]
[]
[null,null,null,null,"FBAA",null,null,null,"Jaarlijkse vaste bijdrage"]
[]
[null,null,null,null,"Overige lidgelden",null,null,null,"Jaarlijkse kost andere lidgelden"]
[]
[null,null,null,null,"Overige bedrijfsgebonden vaste kosten",null,null,null,"Jaarlijkse kost van bijvoorbeeld kuisfirma,..."]
[]
[null,null,null,null,"borgtocht De Lijn",null,null,null,"borgtocht die de vervoerder = 5 % van de jaarwaarde van de opdracht"]

{"sheet":"Rijdend personeel","index":3,"n_rows":58,"n_cols":12,"rows_kept":58,"cut":false,"hidden":false,"merged":[[59,1,59,11]]}
[]
[]
[null,null,null,"Datum invoer gegevens:",null,null,null,null,null,"Gegevens over de loonkosten"]
[]
[]
[null,null,"1. SALAIRES BRUTS, PRIMES ET SUPPLÉMENTS"]
[]
[null,null,null,"Basisuurloon per anciënniteitsklasse"]
[null,null,null,null,null,"0 - 2",null,11.78,null,15.33]
[]
[null,null,null,null,null,"3 - 5",null,11.85,null,15.42]
[]
[null,null,null,null,null,"6 - 10",null,11.91,null,15.5]
[]
[null,null,null,null,null,"11 - 15",null,12.04,null,15.67]
[]
[null,null,null,null,null,"16 - 20",null,12.23,null,15.92]
[null,null,null,null,null," "]
[null,null,null,null,null,"21+",null,12.3,null,16.010000000000002]
[null,null,null,"ARAB-vergoeding"]
[null,null,null,null,null,"arbeidsregime > 25/38",null,6.54,null,8.11,null,"Bedrag per dag"]
[]
[null,null,null,null,null,"arbeidsregime < 25/38",null,5.98,null,7.41,null,"Bedrag per dag"]
[]
[null,null,null,"Premies en toeslagen"]
[null,null,null,null,null,"Nachtwerk:",null,1,null,1.01,null,"toeslag per uur"]
[]
[null,null,null,null,null,"Zondagswerk:",null,1,null,null,null,"Procentuele verhoging van het basisloon"]
[]
[null,null,null,null,null,"Eindejaarspremie:",null,1885.6,null,null,null,"Premie voltijds equivalent - voorschot sociaal fonds"]
[]
[null,null,null,null,null,"Vergoeding gesplitste diensten:",null,1,null,1,null,"Vergoeding per gepresteerde dag"]
[]
[null,null,null,null,null,"Jaarlijkse vergoeding onderhoud kledij:",null,17.100000000000001,null,null,null,"Verplichte vergoeding wanneer uniform voorzien wordt maar niet gewassen wordt"]
[]
[null,null,null,null,null,"Maandelijkse kledijvergoeding",null,7.44,null,null,null,"Verplichte vergoeding wanneer uniform niet voorzien wordt"]
[]
[null,null,null,null,null,"Eco-cheques:",null,null,null,125,null," Bedrag van Eco-cheques"]
[]
[null,null,null,null,null,"Kosten Eco-cheques:",null,0,null,null,null,"Werkgeversbijdrage Ticket EcoCheque® zonder BTW na belasting - Totaalbedrag"]
[]
[null,null,"2. ANDERE LOONKOSTCOMPONENTEN"]
[]
[null,null,null,null,null,"RSZ bijdrage werkgever:",null,null,null,0.47570000000000001,null,"Percentage op brutoloon voor de werkgever"]
[]
[null,null,null,null,null,"Structurele vermindering WG-bijdrage (per WN per trimester):",null,null,null,null,null,"Jaarlijks bedrag voor een voltijds equivalent"]
[]
[null,null,null,null,null,"Arbeidsongevallenverzekering:",null,null,null,null,null,"Jaarlijks bedrag voor een voltijds equivalent"]
[]
[null,null,null,null,null,"Medisch onderzoek:",null,null,null,null,null,"Jaarlijks bedrag voor een voltijds equivalent"]
[]
[null,null,null,null,null,"Ziekte en klein verlet:",null,null,null,null,null,"Jaarlijks bedrag voor een voltijds equivalent"]
[]
[null,null,null,null,null,"Permanente vorming:",null,null,null,null,null,"Jaarlijks bedrag voor een voltijds equivalent"]
[]
[null,null,null,null,null,"Overige:",null,null,null,null,null,"Jaarlijks bedrag voor een voltijds equivalent (rijbewijs, economische werkloosheid, ...)"]
[]
[null,null,null,null,null,"Maaltijdcheques",null,null,null,null,null,"Kost van de maaltijdcheques voor de werkgever"]

{"sheet":"CIRCUIT","index":4,"n_rows":48,"n_cols":20,"rows_kept":48,"cut":false,"hidden":false,"merged":[[6,8,8,14],[39,1,39,14]]}
[]
[]
[null,null,null,"Datum invoer gegevens: ",null,null,"Ritgegevens"]
[]
[null,null,"1. GEGEVENS OVER HET CIRCUIT"]
[]
[null,null,null,null,"klein circuit?",null,null,null,"Een klein circuit is een circuit dat de chauffeur kan combineren met een ander circuit gedurende dezelfde dag."]
[]
[null,null,null,null,"aantal ledige km per dag:"]
[]
[null,null,null,null,"aantal geladen km per dag:"]
[]
[null,null,null,null,"totaal aantal km per dag:",null,{"$f":"G9+G11","v":0}]
[]
[null,null,null,null,"totale rijtijd (uu:mm):"]
[null,null,null,null,"waarvan aantal uur op zondag:",null,"00:00:00"]
[null,null,null,null,"waarvan aantal uur tijdens nacht (22u-6u):",null,"00:00:00"]
[]
[null,null,null,null,"Aantal dagen per week dat de dienst doorgaans wordt uitgevoerd",null,null,null,"Gegeven is nodig om de ARB-vergoeding te berekenen (enkel groot circuit)"]
[]
[null,null,null,null,null,null,null,null,"Duur periode 1 (uu:mm)",null,"Duur periode 2 (uu:mm)",null,"Duur periode 3 (uu:mm)",null,"Duur periode 4 (uu:mm)"]
[]
[null,null,null,null,"Aantal stationnementen (stilstand op de lijn)"]
[]
[null,null,null,null,"Aantal onderbrekingen (stilstand op de stelplaats)",null,null,null,"00:00:00"]
[null,null,"2. GEGEVENS DE CHAUFFEUR OP HET CIRCUIT"]
[]
[null,null,null,null,"Anciënniteit chauffeur (in jaren)"]
[]
[null,null,null,null,"Jaarlijks aantal werkdagen chauffeur"]
[]
[null,null,null,null,"Vergoeding gesplitste dienst van toepassing?"]
[]
[null,null,null,null,"Vergoeding werkkledij?"]
[]
[null,null,null,null,"Eco-cheques van toepassing?"]
[]
[null,null,null,null,"Vergoeding Educheck (/contract/jaar - indien van toepassing)"]
[]
[]
[]
[null,null,null,null,null,null,null,null,null,null,null,null,null,null,null,null,null,"GD/Eco","werkkledij","anciënniteit"]
[null,null,null,null,null,null,null,null,null,null,null,null,null,null,null,null,null,"neen","niet","0 - 2"]
[null,null,null,null,null,null,null,null,null,null,null,null,null,null,null,null,null,"ja","jaarlijks bedrag","3 - 5"]
[null,null,null,null,null,null,null,null,null,null,null,null,null,null,null,null,null,null,"maandelijk bedrag","6 - 10"]
[null,null,null,null,null,null,null,null,null,null,null,null,null,null,null,null,null,null,null,"11 - 15"]
[null,null,null,null,null,null,null,null,null,null,null,null,null,null,null,null,null,null,null,"16 - 20"]
[null,null,null,null,null,null,null,null,null,null,null,null,null,null,null,null,null,null,null,"21+"]

{"sheet":"Personeelskost","index":5,"n_rows":32,"n_cols":13,"rows_kept":32,"cut":false,"hidden":false,"merged":[[33,1,33,7],[1,1,1,8]]}
[]
[null,"BEREKENING PERSONNEELSKOST"]
[]
[null,null,null,null,"dag"]
[null,null,null,null,1]
[null,null,"Totaal aantal werkuur (decimaal)",null,{"$f":"CIRCUIT!G15*24","v":"00:00:00"}]
[null,null,"Totaal aantal zondaguren (decimaal)",null,{"$f":"CIRCUIT!G16*24","v":0}]
[null,null,"Totaal aantal nachturen (decimaal)",null,{"$f":"CIRCUIT!G17*24","v":0}]
[null,null,"Standaard Brutoloon",null,{"$f":"IF(CIRCUIT!G28=CIRCUIT!T43,E6*'Rijdend personeel'!J9,\nIF(CIRCUIT!G28=CIRCUIT!T44,E6*'Rijdend personeel'!J11,\nIF(CIRCUIT!G28=CIRCUIT!T45,E6*'Rijdend personeel'!J13,\nIF(CIRCUIT!G28=CIRCUIT!T46,E6*'Rijdend personeel'!J15,\nIF(CIRCUIT!G28=CIRCUIT!T47,E6*'Rijdend personeel'!J17,\nIF(CIRCUIT!G28=CIRCUIT!T48,E6*'Rijdend personeel'!J19, \"Ancienneté?\"))))))","v":"Ancienneté?"}]
[null,null,"Toeslag zondagwerk",null,{"$f":"E9/E6*E7","v":{"$error":"#VALUE!"}}]
[null,null,"Toeslag nachtwerk",null,{"$f":"E8*'Rijdend personeel'!J26","v":0}]
[null,null,"Duur stationnement 1",null,{"$f":"CIRCUIT!I23*24","v":0},null,null,null,null,null,null,"Premie S1",{"$f":"IF(E12>0,(0.25+E12/2)*($E$9/$E$6),0)","v":0}]
[null,null,"Duur stationnement 2",null,{"$f":"CIRCUIT!K23*24","v":0},null,null,null,null,null,null,"Premie S2",{"$f":"IF(E13>0,(0.25+E13/2)*($E$9/$E$6),0)","v":0}]
[null,null,"Duur stationnement 3",null,{"$f":"CIRCUIT!M23*24","v":0},null,null,null,null,null,null,"Premie S3",0]
[null,null,"Duur stationnement 4",null,{"$f":"CIRCUIT!O23*24","v":0},null,null,null,null,null,null,"Premie S4",0]
[null,null,"Duur onderbreking 1",null,{"$f":"CIRCUIT!I25*24","v":0},null,null,null,null,null,null,"Premie O1",{"$f":"IF(E16>=1,0,E16*($E$9/$E$6))","v":{"$error":"#VALUE!"}}]
[null,null,"Duur onderbreking 2",null,{"$f":"CIRCUIT!K25*24","v":0},null,null,null,null,null,null,"Premie O2",{"$f":"IF(AND(E17>=1,E16<1),0,IF(E17>=1,$E$9/$E$6,E17*($E$9/$E$6)))","v":{"$error":"#VALUE!"}}]
[null,null,"Duur onderbreking 3",null,{"$f":"CIRCUIT!M25*24","v":0},null,null,null,null,null,null,"Premie O3",{"$f":"IF(AND(E18>=1,E17<1,E16<1),0,IF(E18>=1,$E$9/$E$6,E18*($E$9/$E$6)))","v":{"$error":"#VALUE!"}}]
[null,null,"Duur onderbreking 4",null,{"$f":"CIRCUIT!O25*24","v":0},null,null,null,null,null,null,"Premie O4",{"$f":"IF(AND(E19>=1,E18<1,E17<1,E16<1),0,IF(E19>=1,$E$9/$E$6,E19*($E$9/$E$6)))","v":{"$error":"#VALUE!"}}]
[null,null,"Stationnementspremie",null,{"$f":"SUM(M12:M15)","v":0}]
[null,null,"Onderbrekingsvergoeding",null,{"$f":"SUM(M16:M19)","v":{"$error":"#VALUE!"}}]
[null,null,"Vergoeding gesplitste diensten",null,{"$f":"IF(CIRCUIT!G32=CIRCUIT!R44,'Rijdend personeel'!J32,0)","v":0}]
[null,null,"Eindejaarspremie",null,{"$f":"'Rijdend personeel'!J30/218.5/7.6*E6","v":0}]
[null,null,"RSZ Werkgever",null,{"$f":"((SUM(E9,E10,E11,E20,E21,E22,E23)*1.08*'Rijdend personeel'!J44))-('Rijdend personeel'!J46/218.5/7.6*E6)","v":{"$error":"#VALUE!"}}]
[null,null,"Eco-cheques",null,{"$f":"IF(CIRCUIT!G36=CIRCUIT!R44,('Rijdend personeel'!J38+'Rijdend personeel'!J40)/218.5/7.6*E6,0)","v":0}]
[null,null,null,null,null,"Grand circuit","Petit circuit"]
[null,null,"ARAB-vergoeding",null,{"$f":"IF(CIRCUIT!$G$7=CIRCUIT!$R$43,F27,G27)","v":0.69999999999999929},{"$f":"IF(CIRCUIT!G15*CIRCUIT!G19*24>25,'Rijdend personeel'!J21,'Rijdend personeel'!J23)","v":7.41},{"$f":"'Rijdend personeel'!J21-'Rijdend personeel'!J23","v":0.69999999999999929},null,null,null,"Coût tenu en compte pour les petits circuits est la différence entre le coût un moins de 25 heures par semaine et un plus de 25 heures par semaine"]
[null,null,"Vergoeding werkkledij",null,{"$f":"IF(CIRCUIT!$G$7=CIRCUIT!$R$43,F28,G28)","v":0},{"$f":"IF(CIRCUIT!G34=CIRCUIT!S44,'Rijdend personeel'!J34/CIRCUIT!G30,IF(CIRCUIT!G34=CIRCUIT!S45,'Rijdend personeel'!J36/(4*CIRCUIT!G19),0))","v":0},0,null,null,null,"Pour les petits circuits l'indemnité a déjà été payé"]
[null,null,"Andere loonkosten",null,{"$f":"IF(CIRCUIT!$G$7=CIRCUIT!$R$43,(('Rijdend personeel'!J48+'Rijdend personeel'!J50)/218.5/7.6*E6)+F29,('Rijdend personeel'!J48+'Rijdend personeel'!J50)/218.5/7.6*E6)","v":0},{"$f":"('Rijdend personeel'!J52+'Rijdend personeel'!J54+'Rijdend personeel'!J56)/CIRCUIT!G30","v":{"$error":"#DIV/0!"}},0,null,null,null,"Pour les petits circuits les coûts de l'examen médicale et la formation continue ont déjà été payé"]
[null,null,"Maaltijdcheques",null,{"$f":"'Rijdend personeel'!J58","v":0}]
[null,null,"Extra loonkosten"]
[null,null,"Totale loonkost alle CH",null,{"$f":"SUM(E9,E10,E11,E20,E21,E22,E23,E24,E27,E28,E25,E29,E30,E31)","v":{"$error":"#VALUE!"}}]

{"sheet":"Kostprijs en Verkoopprijs","index":6,"n_rows":67,"n_cols":25,"rows_kept":67,"cut":false,"hidden":false,"merged":[[38,4,39,4],[1,1,1,19],[15,3,17,3],[19,3,21,3],[13,3,13,5],[26,3,29,5],[68,1,68,8],[33,4,34,4],[47,4,49,4],[57,4,57,5],[58,4,58,5],[63,4,63,5],[56,3,59,3],[61,3,61,5],[56,4,56,5],[63,3,66,3],[64,4,64,5],[65,4,65,5],[33,3,34,3],[43,3,44,3],[38,3,39,3],[46,3,52,3]]}
[]
[null,"CALCUL PRIX DE REVIENT ET PRIX D'OFFRE"]
[]
[null,null,"1. Vaste of variabele kost: maak uw keuze"]
[]
[null,null,null,null,null,"Afschrijving & financiering (C4-C6)                                     ",null,null,null,null,null,null,null,null,null,null,null,null,null,null,null,null,"Vaste kost",1,"Afschrijving & financiering (C4-C6)                                     "]
[null,null,null,null,null,"Garage/Infrastructuur (C7)                                     ",null,null,null,null,null,null,null,null,null,null,null,null,null,null,null,null,"Variabele kost",1,"Garage/Infrastructuur (C7)                                     "]
[null,null,null,null,null,"Verzekeringen voertuig (C8)                                     ",null,null,null,null,null,null,null,null,null,null,null,null,null,null,null,null,null,2,"Verzekeringen voertuig (C8)                                     "]
[null,null,null,null,null,"Administratie (C10)                                     ",null,null,null,null,null,null,null,null,null,null,null,null,null,null,null,null,null,1,"Administratie (C10)                                     "]
[null,null,null,null,null,"Andere voertuigspecifieke kosten                                     ",null,null,null,null,null,null,null,null,null,null,null,null,null,null,null,null,null,1,"Andere voertuigspecifieke kosten"]
[]
[null,null,"2. Kosten onafhankelijk van het voertuig"]
[]
[null,null,null,"% van de vaste kosten om mee te nemen",null,null,null,null,"6102bci%"]
[]
[null,null,null,"VAST",{"$f":"IF($X7=1,\"C7\",\"\")","v":"C7"},{"$f":"IF($X7=1,\"Garage/Infrastructuur \",\"\")","v":"Garage/Infrastructuur "},null,null,{"$f":"IF(X7=1,(SUM(Bedrijf!$G$30,Bedrijf!$G$32,Bedrijf!$G$34,Bedrijf!$G$36)/Bedrijf!$G$9/Bedrijf!$G$11)*I14,\"\")","v":{"$error":"#DIV/0!"}}]
[null,null,null,null,{"$f":"IF($X9=1,\"C10\",\"\")","v":"C10"},{"$f":"IF($X9=1,\"Administratie\",\"\")","v":"Administratie"},null,null,{"$f":"IF(X9=1,(SUM(Bedrijf!G40,Bedrijf!G42,Bedrijf!G44,Bedrijf!G46,Bedrijf!G48,Bedrijf!G50,Bedrijf!G52,Bedrijf!G54,Bedrijf!G56,Bedrijf!G58)/Bedrijf!G9/Bedrijf!G11)*I14,\"\")","v":{"$error":"#DIV/0!"}}]
[null,null,null,null,null,"Educheck",null,null,{"$f":"CIRCUIT!$G38/182","v":0}]
[]
[null,null,null,"VARIABEL",{"$f":"IF($X7=2,\"C7\",\"\")","v":""},{"$f":"IF($X7=2,\"Garage/Infrastructuur\",\"\")","v":""},null,null,{"$f":"IF($X7=2,(SUM(Bedrijf!$G30,Bedrijf!$G32,Bedrijf!$G34,Bedrijf!$G36)/Bedrijf!$G13*CIRCUIT!$G13),\"\")","v":""}]
[null,null,null,null,{"$f":"IF($X9=2,\"C10\",\"\")","v":""},{"$f":"IF($X9=2,\"Administratie\",\"\")","v":""},null,null,{"$f":"IF($X9=2,((Bedrijf!$G40+Bedrijf!$G42+Bedrijf!$G44+Bedrijf!$G46+Bedrijf!$G48+Bedrijf!$G50+Bedrijf!$G52+Bedrijf!$G54+Bedrijf!$G56+Bedrijf!G58)/Bedrijf!$G13*CIRCUIT!$G13),\"\")","v":""}]
[null,null,null,null,"C9","Personeelskost chauffeur",null,null,{"$f":"Personeelskost!$E32","v":{"$error":"#VALUE!"}}]
[]
[null,null,"3. Afschrijving en financiering van het voertuig"]
[]
[]
[null,null,null,"% van de vaste kosten waarmee rekening moet worden gehouden (als de cel leeg is, wordt 0% toegepast)",null,null,null,null,{"$f":"Voertuig!H8","v":"Mercedes Sprinter 23pl"},null,{"$f":"Voertuig!J8","v":"Iveco 36pl"},null,{"$f":"Voertuig!L8","v":"Iveco 38pl"},null,{"$f":"Voertuig!N8","v":"Mercedes Atego 40pl"},null,{"$f":"IF(Voertuig!P8=\"\",\"\",Voertuig!P8)","v":"Mercedes Intouro 55pl"},null,{"$f":"IF(Voertuig!R8=\"\",\"\",Voertuig!R8)","v":"Mercedes Intouro 65pl"}]
[null,null,null,null,null,null,null,null,true,null,true,null,true,null,true,null,true,null,true]
[]
[null,null,null,null,null,null,null,null,1,null,1,null,1,null,1,null,1,null,1]
[]
[null,null,null,null,null,"Voertuig in geval aankoop",null,null,{"$f":"Voertuig!H16*(1-Voertuig!H18)/Voertuig!H20/Voertuig!H24","v":{"$error":"#DIV/0!"}},null,{"$f":"Voertuig!J16*(1-Voertuig!J18)/Voertuig!J20/Voertuig!J24","v":{"$error":"#DIV/0!"}},null,{"$f":"Voertuig!L16*(1-Voertuig!L18)/Voertuig!L20/Voertuig!L24","v":{"$error":"#DIV/0!"}},null,{"$f":"Voertuig!N16*(1-Voertuig!N18)/Voertuig!N20/Voertuig!N24","v":{"$error":"#DIV/0!"}},null,{"$f":"Voertuig!P16*(1-Voertuig!P18)/Voertuig!P20/Voertuig!P24","v":{"$error":"#DIV/0!"}},null,{"$f":"Voertuig!R16*(1-Voertuig!R18)/Voertuig!R20/Voertuig!R24","v":{"$error":"#DIV/0!"}}]
[null,null,null,null,null,"Voertuig in geval leasing",null,null,{"$f":"Voertuig!H14*12/Voertuig!H24","v":{"$error":"#DIV/0!"}},null,{"$f":"Voertuig!J14*12/Voertuig!J24","v":{"$error":"#DIV/0!"}},null,{"$f":"Voertuig!L14*12/Voertuig!L24","v":{"$error":"#DIV/0!"}},null,{"$f":"Voertuig!N14*12/Voertuig!N24","v":{"$error":"#DIV/0!"}},null,{"$f":"Voertuig!P14*12/Voertuig!P24","v":{"$error":"#DIV/0!"}},null,{"$f":"Voertuig!R14*12/Voertuig!R24","v":{"$error":"#DIV/0!"}}]
[null,null,null,{"$f":"IF($X6=1,\"VAST\",\"\")","v":"VAST"},{"$f":"IF($X6=1,\"C4-C6\",\"\")","v":"C4-C6"},{"$f":"IF($X6=1,\"Afschrijving voertuig of leasing\",\"\")","v":"Afschrijving voertuig of leasing"},null,null,{"$f":"IF(I28=TRUE,(IF($X6=1,(IF(Voertuig!H12=1,I32,I33))*(I30),\"\")),\"\")","v":{"$error":"#DIV/0!"}},null,{"$f":"IF(K28=TRUE,(IF($X6=1,(IF(Voertuig!J12=1,K32,K33))*(K30),\"\")),\"\")","v":{"$error":"#DIV/0!"}},null,{"$f":"IF(M28=TRUE,(IF($X6=1,(IF(Voertuig!L12=1,M32,M33))*(M30),\"\")),\"\")","v":{"$error":"#DIV/0!"}},null,{"$f":"IF(O28=TRUE,(IF($X6=1,(IF(Voertuig!N12=1,O32,O33))*(O30),\"\")),\"\")","v":{"$error":"#DIV/0!"}},null,{"$f":"IF(Q28=TRUE,(IF($X6=1,(IF(Voertuig!P12=1,Q32,Q33))*(Q30),\"\")),\"\")","v":{"$error":"#DIV/0!"}},null,{"$f":"IF(S28=TRUE,(IF($X6=1,(IF(Voertuig!R12=1,S32,S33))*(S30),\"\")),\"\")","v":{"$error":"#DIV/0!"}}]
[null,null,null,null,null,{"$f":"IF($X6=1,\"Financiering voertuig\",\"\")","v":"Financiering voertuig"},null,null,{"$f":"IF(I28=TRUE,IF(AND($X6=1,Voertuig!H12=1),\n((Voertuig!H16*(1-Voertuig!H18)/2+Voertuig!H16*Voertuig!H18)\n*(Voertuig!H30*(1-Voertuig!H32)+Voertuig!H34*Voertuig!H32)\n/Voertuig!H24)*(I30),\"\"),\"\")","v":""},null,{"$f":"IF(K28=TRUE,IF(AND($X6=1,Voertuig!J12=1),\n((Voertuig!J16*(1-Voertuig!J18)/2+Voertuig!J16*Voertuig!J18)\n*(Voertuig!J30*(1-Voertuig!J32)+Voertuig!J34*Voertuig!J32)\n/Voertuig!J24)*(K30),\"\"),\"\")","v":{"$error":"#DIV/0!"}},null,{"$f":"IF(M28=TRUE,IF(AND($X6=1,Voertuig!L12=1),\n((Voertuig!L16*(1-Voertuig!L18)/2+Voertuig!L16*Voertuig!L18)\n*(Voertuig!L30*(1-Voertuig!L32)+Voertuig!L34*Voertuig!L32)\n/Voertuig!L24)*(M30),\"\"),\"\")","v":{"$error":"#DIV/0!"}},null,{"$f":"IF(O28=TRUE,IF(AND($X6=1,Voertuig!N12=1),\n((Voertuig!N16*(1-Voertuig!N18)/2+Voertuig!N16*Voertuig!N18)\n*(Voertuig!N30*(1-Voertuig!N32)+Voertuig!N34*Voertuig!N32)\n/Voertuig!N24)*(O30),\"\"),\"\")","v":{"$error":"#DIV/0!"}},null,{"$f":"IF(Q28=TRUE,IF(AND($X6=1,Voertuig!P12=1),\n((Voertuig!P16*(1-Voertuig!P18)/2+Voertuig!P16*Voertuig!P18)\n*(Voertuig!P30*(1-Voertuig!P32)+Voertuig!P34*Voertuig!P32)\n/Voertuig!P24)*(Q30),\"\"),\"\")","v":{"$error":"#DIV/0!"}},null,{"$f":"IF(S28=TRUE,IF(AND($X6=1,Voertuig!R12=1),\n((Voertuig!R16*(1-Voertuig!R18)/2+Voertuig!R16*Voertuig!R18)\n*(Voertuig!R30*(1-Voertuig!R32)+Voertuig!R34*Voertuig!R32)\n/Voertuig!R24)*(S30),\"\"),\"\")","v":{"$error":"#DIV/0!"}}]
[]
[null,null,null,null,null,"Voertuig in geval van aankoop",null,null,{"$f":"Voertuig!H16*(1-Voertuig!H18)/Voertuig!H22*CIRCUIT!$G13","v":{"$error":"#DIV/0!"}},null,{"$f":"Voertuig!J16*(1-Voertuig!J18)/Voertuig!J22*CIRCUIT!$G13","v":{"$error":"#DIV/0!"}},null,{"$f":"Voertuig!L16*(1-Voertuig!L18)/Voertuig!L22*CIRCUIT!$G13","v":{"$error":"#DIV/0!"}},null,{"$f":"Voertuig!N16*(1-Voertuig!N18)/Voertuig!N22*CIRCUIT!$G13","v":{"$error":"#DIV/0!"}},null,{"$f":"Voertuig!P16*(1-Voertuig!P18)/Voertuig!P22*CIRCUIT!$G13","v":{"$error":"#DIV/0!"}},null,{"$f":"Voertuig!R16*(1-Voertuig!R18)/Voertuig!R22*CIRCUIT!$G13","v":{"$error":"#DIV/0!"}}]
[null,null,null,null,null,"Voertuig in geval van leasing",null,null,{"$f":"Voertuig!H14*12/Voertuig!H26*CIRCUIT!$G13","v":{"$error":"#DIV/0!"}},null,{"$f":"Voertuig!J14*12/Voertuig!J26*CIRCUIT!$G13","v":{"$error":"#DIV/0!"}},null,{"$f":"Voertuig!L14*12/Voertuig!L26*CIRCUIT!$G13","v":{"$error":"#DIV/0!"}},null,{"$f":"Voertuig!N14*12/Voertuig!N26*CIRCUIT!$G13","v":{"$error":"#DIV/0!"}},null,{"$f":"Voertuig!P14*12/Voertuig!P26*CIRCUIT!$G13","v":{"$error":"#DIV/0!"}},null,{"$f":"Voertuig!R14*12/Voertuig!R26*CIRCUIT!$G13","v":{"$error":"#DIV/0!"}}]
[null,null,null,{"$f":"IF($X6=2,\"VARIABEL\",\"\")","v":""},{"$f":"IF($X6=2,\"C4-C6\",\"\")","v":""},{"$f":"IF($X6=2,\"Afschrijving voertuig of leasing\",\"\")","v":""},null,null,{"$f":"IF(I28=TRUE,(IF($X6=2,(IF(Voertuig!H12=1,I37,I38)),\"\")),\"\")","v":""},null,{"$f":"IF(K28=TRUE,(IF($X6=2,(IF(Voertuig!J12=1,K37,K38)),\"\")),\"\")","v":""},null,{"$f":"IF(M28=TRUE,(IF($X6=2,(IF(Voertuig!L12=1,M37,M38)),\"\")),\"\")","v":""},null,{"$f":"IF(O28=TRUE,(IF($X6=2,(IF(Voertuig!N12=1,O37,O38)),\"\")),\"\")","v":""},null,{"$f":"IF(Q28=TRUE,(IF($X6=2,(IF(Voertuig!P12=1,Q37,Q38)),\"\")),\"\")","v":""},null,{"$f":"IF(S28=TRUE,(IF($X6=2,(IF(Voertuig!R12=1,S37,S38)),\"\")),\"\")","v":""}]
[null,null,null,null,null,{"$f":"IF($X6=2,\"Financiering voertuig\",\"\")","v":""},null,null,{"$f":"IF(I28=TRUE,IF($X6=2,(((Voertuig!H16*(1-Voertuig!H18)/2+Voertuig!H16*Voertuig!H18)\n*(Voertuig!H30*(1-Voertuig!H32)+Voertuig!H34*Voertuig!H32)\n/Voertuig!H26)*CIRCUIT!$G13),\"\"),\"\")","v":""},null,{"$f":"IF(K28=TRUE,IF($X6=2,(((Voertuig!J16*(1-Voertuig!J18)/2+Voertuig!J16*Voertuig!J18)\n*(Voertuig!J30*(1-Voertuig!J32)+Voertuig!J34*Voertuig!J32)\n/Voertuig!J26)*CIRCUIT!$G13),\"\"),\"\")","v":""},null,{"$f":"IF(M28=TRUE,IF($X6=2,(((Voertuig!L16*(1-Voertuig!L18)/2+Voertuig!L16*Voertuig!L18)\n*(Voertuig!L30*(1-Voertuig!L32)+Voertuig!L34*Voertuig!L32)\n/Voertuig!L26)*CIRCUIT!$G13),\"\"),\"\")","v":""},null,{"$f":"IF(O28=TRUE,IF($X6=2,(((Voertuig!N16*(1-Voertuig!N18)/2+Voertuig!N16*Voertuig!N18)\n*(Voertuig!N30*(1-Voertuig!N32)+Voertuig!N34*Voertuig!N32)\n/Voertuig!N26)*CIRCUIT!$G13),\"\"),\"\")","v":""},null,{"$f":"IF(Q28=TRUE,IF($X6=2,(((Voertuig!P16*(1-Voertuig!P18)/2+Voertuig!P16*Voertuig!P18)\n*(Voertuig!P30*(1-Voertuig!P32)+Voertuig!P34*Voertuig!P32)\n/Voertuig!P26)*CIRCUIT!$G13),\"\"),\"\")","v":""},null,{"$f":"IF(S28=TRUE,IF($X6=2,(((Voertuig!R16*(1-Voertuig!R18)/2+Voertuig!R16*Voertuig!R18)\n*(Voertuig!R30*(1-Voertuig!R32)+Voertuig!R34*Voertuig!R32)\n/Voertuig!R26)*CIRCUIT!$G13),\"\"),\"\")","v":""}]
[]
[null,null,"4. Andere voertuigspecifieke kosten"]
[]
[null,null,null,"VAST",{"$f":"IF($X8=1,\"C8\",\"\")","v":""},{"$f":"IF($X8=1,\"Verzekeringen voertuig\",\"\")","v":""},null,null,{"$f":"IF(I28=TRUE,IF($X8=1,((Voertuig!H$58+Voertuig!H$60+Voertuig!H$62+Voertuig!H$64+Voertuig!H$66+Voertuig!H$68+Voertuig!H$70+Voertuig!H$72)/Voertuig!H$24*(I30)),\"\"),\"\")","v":""},null,{"$f":"IF(K28=TRUE,IF($X8=1,((Voertuig!J$58+Voertuig!J$60+Voertuig!J$62+Voertuig!J$64+Voertuig!J$66+Voertuig!J$68+Voertuig!J$70+Voertuig!J$72)/Voertuig!J$24*(K30)),\"\"),\"\")","v":""},null,{"$f":"IF(M28=TRUE,IF($X8=1,((Voertuig!L$58+Voertuig!L$60+Voertuig!L$62+Voertuig!L$64+Voertuig!L$66+Voertuig!L$68+Voertuig!L$70+Voertuig!L$72)/Voertuig!L$24*(M30)),\"\"),\"\")","v":""},null,{"$f":"IF(O28=TRUE,IF($X8=1,((Voertuig!N$58+Voertuig!N$60+Voertuig!N$62+Voertuig!N$64+Voertuig!N$66+Voertuig!N$68+Voertuig!N$70+Voertuig!N$72)/Voertuig!N$24*(O30)),\"\"),\"\")","v":""},null,{"$f":"IF(Q28=TRUE,IF($X8=1,((Voertuig!P$58+Voertuig!P$60+Voertuig!P$62+Voertuig!P$64+Voertuig!P$66+Voertuig!P$68+Voertuig!P$70+Voertuig!P$72)/Voertuig!P$24*(Q30)),\"\"),\"\")","v":""},null,{"$f":"IF(S28=TRUE,IF($X8=1,((Voertuig!R$58+Voertuig!R$60+Voertuig!R$62+Voertuig!R$64+Voertuig!R$66+Voertuig!R$68+Voertuig!R$70+Voertuig!R$72)/Voertuig!R$24*(S30)),\"\"),\"\")","v":""}]
[null,null,null,null,null,{"$f":"IF($X10=1,\"Overige kosten\",\"\")","v":"Overige kosten"},null,null,{"$f":"IF(I28=TRUE,IF($X10=1,((Voertuig!H$83*Voertuig!H$85+Voertuig!H$87+Voertuig!H$89)/Voertuig!H$24*(I30)),\"\"),\"\")","v":{"$error":"#DIV/0!"}},null,{"$f":"IF(K28=TRUE,IF($X10=1,((Voertuig!J$83*Voertuig!J$85+Voertuig!J$87+Voertuig!J$89)/Voertuig!J$24*(K30)),\"\"),\"\")","v":{"$error":"#DIV/0!"}},null,{"$f":"IF(M28=TRUE,IF($X10=1,((Voertuig!L$83*Voertuig!L$85+Voertuig!L$87+Voertuig!L$89)/Voertuig!L$24*(M30)),\"\"),\"\")","v":{"$error":"#DIV/0!"}},null,{"$f":"IF(O28=TRUE,IF($X10=1,((Voertuig!N$83*Voertuig!N$85+Voertuig!N$87+Voertuig!N$89)/Voertuig!N$24*(O30)),\"\"),\"\")","v":{"$error":"#DIV/0!"}},null,{"$f":"IF(Q28=TRUE,IF($X10=1,((Voertuig!P$83*Voertuig!P$85+Voertuig!P$87+Voertuig!P$89)/Voertuig!P$24*(Q30)),\"\"),\"\")","v":{"$error":"#DIV/0!"}},null,{"$f":"IF(S28=TRUE,IF($X10=1,((Voertuig!R$83*Voertuig!R$85+Voertuig!R$87+Voertuig!R$89)/Voertuig!R$24*(S30)),\"\"),\"\")","v":{"$error":"#DIV/0!"}}]
[]
[null,null,null,"VARIABEL",{"$f":"IF($X8=2,\"C8\",\"\")","v":"C8"},{"$f":"IF($X8=2,\"Verzekeringen voertuig\",\"\")","v":"Verzekeringen voertuig"},null,null,{"$f":"IF(I28=TRUE,IF($X8=2,((Voertuig!H$58+Voertuig!H$60+Voertuig!H$62+Voertuig!H$64+Voertuig!H$66+Voertuig!H$68+Voertuig!H$70+Voertuig!H$72)/Voertuig!H$26*CIRCUIT!$G13),\"\"),\"\")","v":{"$error":"#DIV/0!"}},null,{"$f":"IF(K28=TRUE,IF($X8=2,((Voertuig!J$58+Voertuig!J$60+Voertuig!J$62+Voertuig!J$64+Voertuig!J$66+Voertuig!J$68+Voertuig!J$70+Voertuig!J$72)/Voertuig!J$26*CIRCUIT!$G13),\"\"),\"\")","v":{"$error":"#DIV/0!"}},null,{"$f":"IF(M28=TRUE,IF($X8=2,((Voertuig!L$58+Voertuig!L$60+Voertuig!L$62+Voertuig!L$64+Voertuig!L$66+Voertuig!L$68+Voertuig!L$70+Voertuig!L$72)/Voertuig!L$26*CIRCUIT!$G13),\"\"),\"\")","v":{"$error":"#DIV/0!"}},null,{"$f":"IF(O28=TRUE,IF($X8=2,((Voertuig!N$58+Voertuig!N$60+Voertuig!N$62+Voertuig!N$64+Voertuig!N$66+Voertuig!N$68+Voertuig!N$70+Voertuig!N$72)/Voertuig!N$26*CIRCUIT!$G13),\"\"),\"\")","v":{"$error":"#DIV/0!"}},null,{"$f":"IF(Q28=TRUE,IF($X8=2,((Voertuig!P$58+Voertuig!P$60+Voertuig!P$62+Voertuig!P$64+Voertuig!P$66+Voertuig!P$68+Voertuig!P$70+Voertuig!P$72)/Voertuig!P$26*CIRCUIT!$G13),\"\"),\"\")","v":{"$error":"#DIV/0!"}},null,{"$f":"IF(S28=TRUE,IF($X8=2,((Voertuig!R$58+Voertuig!R$60+Voertuig!R$62+Voertuig!R$64+Voertuig!R$66+Voertuig!R$68+Voertuig!R$70+Voertuig!R$72)/Voertuig!R$26*CIRCUIT!$G13),\"\"),\"\")","v":{"$error":"#DIV/0!"}}]
[null,null,null,null,"C1","Brandstof",null,null,{"$f":"IF(I28=TRUE,Voertuig!H38*Bedrijf!$G22*CIRCUIT!$G13/100,\"\")","v":0},null,{"$f":"IF(K28=TRUE,Voertuig!J38*Bedrijf!$G22*CIRCUIT!$G13/100,\"\")","v":0},null,{"$f":"IF(M28=TRUE,Voertuig!L38*Bedrijf!$G22*CIRCUIT!$G13/100,\"\")","v":0},null,{"$f":"IF(O28=TRUE,Voertuig!N38*Bedrijf!$G22*CIRCUIT!$G13/100,\"\")","v":0},null,{"$f":"IF(Q28=TRUE,Voertuig!P38*Bedrijf!$G22*CIRCUIT!$G13/100,\"\")","v":0},null,{"$f":"IF(S28=TRUE,Voertuig!R38*Bedrijf!$G22*CIRCUIT!$G13/100,\"\")","v":0}]
[null,null,null,null,null,"Olie",null,null,{"$f":"IF(I28=TRUE,Voertuig!H40*Bedrijf!$G24*CIRCUIT!$G13/100,\"\")","v":0},null,{"$f":"IF(K28=TRUE,Voertuig!J40*Bedrijf!$G24*CIRCUIT!$G13/100,\"\")","v":0},null,{"$f":"IF(M28=TRUE,Voertuig!L40*Bedrijf!$G24*CIRCUIT!$G13/100,\"\")","v":0},null,{"$f":"IF(O28=TRUE,Voertuig!N40*Bedrijf!$G24*CIRCUIT!$G13/100,\"\")","v":0},null,{"$f":"IF(Q28=TRUE,Voertuig!P40*Bedrijf!$G24*CIRCUIT!$G13/100,\"\")","v":0},null,{"$f":"IF(S28=TRUE,Voertuig!R40*Bedrijf!$G24*CIRCUIT!$G13/100,\"\")","v":0}]
[null,null,null,null,null,"Adblue",null,null,{"$f":"IF(I28=TRUE,Voertuig!H42*Bedrijf!$G26*CIRCUIT!$G13/100,\"\")","v":0},null,{"$f":"IF(K28=TRUE,Voertuig!J42*Bedrijf!$G26*CIRCUIT!$G13/100,\"\")","v":0},null,{"$f":"IF(M28=TRUE,Voertuig!L42*Bedrijf!$G26*CIRCUIT!$G13/100,\"\")","v":0},null,{"$f":"IF(O28=TRUE,Voertuig!N42*Bedrijf!$G26*CIRCUIT!$G13/100,\"\")","v":0},null,{"$f":"IF(Q28=TRUE,Voertuig!P42*Bedrijf!$G26*CIRCUIT!$G13/100,\"\")","v":0},null,{"$f":"IF(S28=TRUE,Voertuig!R42*Bedrijf!$G26*CIRCUIT!$G13/100,\"\")","v":0}]
[null,null,null,null,"C2","Banden",null,null,{"$f":"IF(I28=TRUE,(Voertuig!H46*Voertuig!H54/Voertuig!H50*CIRCUIT!$G13)+(Voertuig!H48*Voertuig!H54/Voertuig!H52*CIRCUIT!$G13),\"\")","v":{"$error":"#DIV/0!"}},null,{"$f":"IF(K28=TRUE,(Voertuig!J46*Voertuig!J54/Voertuig!J50*CIRCUIT!$G13)+(Voertuig!J48*Voertuig!J54/Voertuig!J52*CIRCUIT!$G13),\"\")","v":{"$error":"#DIV/0!"}},null,{"$f":"IF(M28=TRUE,(Voertuig!L46*Voertuig!L54/Voertuig!L50*CIRCUIT!$G13)+(Voertuig!L48*Voertuig!L54/Voertuig!L52*CIRCUIT!$G13),\"\")","v":{"$error":"#DIV/0!"}},null,{"$f":"IF(O28=TRUE,(Voertuig!N46*Voertuig!N54/Voertuig!N50*CIRCUIT!$G13)+(Voertuig!N48*Voertuig!N54/Voertuig!N52*CIRCUIT!$G13),\"\")","v":{"$error":"#DIV/0!"}},null,{"$f":"IF(Q28=TRUE,(Voertuig!P46*Voertuig!P54/Voertuig!P50*CIRCUIT!$G13)+(Voertuig!P48*Voertuig!P54/Voertuig!P52*CIRCUIT!$G13),\"\")","v":{"$error":"#DIV/0!"}},null,{"$f":"IF(S28=TRUE,(Voertuig!R46*Voertuig!R54/Voertuig!R50*CIRCUIT!$G13)+(Voertuig!R48*Voertuig!R54/Voertuig!R52*CIRCUIT!$G13),\"\")","v":{"$error":"#DIV/0!"}}]
[null,null,null,null,"C3","Onderhoud en herstellingen",null,null,{"$f":"IF(I28=TRUE,(((Voertuig!H77+Voertuig!H79)/Voertuig!H26)+(Bedrijf!$G18/Bedrijf!$G13))*CIRCUIT!$G13,\"\")","v":{"$error":"#DIV/0!"}},null,{"$f":"IF(K28=TRUE,(((Voertuig!J77+Voertuig!J79)/Voertuig!J26)+(Bedrijf!$G18/Bedrijf!$G13))*CIRCUIT!$G13,\"\")","v":{"$error":"#DIV/0!"}},null,{"$f":"IF(M28=TRUE,(((Voertuig!L77+Voertuig!L79)/Voertuig!L26)+(Bedrijf!$G18/Bedrijf!$G13))*CIRCUIT!$G13,\"\")","v":{"$error":"#DIV/0!"}},null,{"$f":"IF(O28=TRUE,(((Voertuig!N77+Voertuig!N79)/Voertuig!N26)+(Bedrijf!$G18/Bedrijf!$G13))*CIRCUIT!$G13,\"\")","v":{"$error":"#DIV/0!"}},null,{"$f":"IF(Q28=TRUE,(((Voertuig!P77+Voertuig!P79)/Voertuig!P26)+(Bedrijf!$G18/Bedrijf!$G13))*CIRCUIT!$G13,\"\")","v":{"$error":"#DIV/0!"}},null,{"$f":"IF(S28=TRUE,(((Voertuig!R77+Voertuig!R79)/Voertuig!R26)+(Bedrijf!$G18/Bedrijf!$G13))*CIRCUIT!$G13,\"\")","v":{"$error":"#DIV/0!"}}]
[null,null,null,null,null,{"$f":"IF($X10=2,\"Overige kosten\",\"\")","v":""},null,null,{"$f":"IF(I28=TRUE,IF($X$10=2,((Voertuig!H83*Voertuig!H85+Voertuig!H87+Voertuig!H89)/Voertuig!H26*CIRCUIT!$G13),\"\"),\"\")","v":""},null,{"$f":"IF(K28=TRUE,IF($X$10=2,((Voertuig!J83*Voertuig!J85+Voertuig!J87+Voertuig!J89)/Voertuig!J26*CIRCUIT!$G13),\"\"),\"\")","v":""},null,{"$f":"IF(M28=TRUE,IF($X$10=2,((Voertuig!L83*Voertuig!L85+Voertuig!L87+Voertuig!L89)/Voertuig!L26*CIRCUIT!$G13),\"\"),\"\")","v":""},null,{"$f":"IF(O28=TRUE,IF($X$10=2,((Voertuig!N83*Voertuig!N85+Voertuig!N87+Voertuig!N89)/Voertuig!N26*CIRCUIT!$G13),\"\"),\"\")","v":""},null,{"$f":"IF(Q28=TRUE,IF($X$10=2,((Voertuig!P83*Voertuig!P85+Voertuig!P87+Voertuig!P89)/Voertuig!P26*CIRCUIT!$G13),\"\"),\"\")","v":""},null,{"$f":"IF(S28=TRUE,IF($X$10=2,((Voertuig!R83*Voertuig!R85+Voertuig!R87+Voertuig!R89)/Voertuig!R26*CIRCUIT!$G13),\"\"),\"\")","v":""}]
[]
[null,null,"5. Totale kosten en marge"]
[]
[null,null,null,"TOTALE KOSTEN","Totale kost voor 1 dag",null,null,null,{"$f":"IF(I28=TRUE,SUM($I16:$I18,$I20:$I22,I34:I35,I39:I40,I44:I45,I47:I53),\"\")","v":{"$error":"#DIV/0!"}},null,{"$f":"IF(K28=TRUE,SUM($I16:$I18,$I20:$I22,K34:K35,K39:K40,K44:K45,K47:K53),\"\")","v":{"$error":"#DIV/0!"}},null,{"$f":"IF(M28=TRUE,SUM($I16:$I18,$I20:$I22,M34:M35,M39:M40,M44:M45,M47:M53),\"\")","v":{"$error":"#DIV/0!"}},null,{"$f":"IF(O28=TRUE,SUM($I16:$I18,$I20:$I22,O34:O35,O39:O40,O44:O45,O47:O53),\"\")","v":{"$error":"#DIV/0!"}},null,{"$f":"IF(Q28=TRUE,SUM($I16:$I18,$I20:$I22,Q34:Q35,Q39:Q40,Q44:Q45,Q47:Q53),\"\")","v":{"$error":"#DIV/0!"}},null,{"$f":"IF(S28=TRUE,SUM($I16:$I18,$I20:$I22,S34:S35,S39:S40,S44:S45,S47:S53),\"\")","v":{"$error":"#DIV/0!"}}]
[null,null,null,null,"Vaste kost per dag",null,null,null,{"$f":"IF(I28=TRUE,SUM($I16:$I18,I34:I35,I44:I45),\"\")","v":{"$error":"#DIV/0!"}},null,{"$f":"IF(K28=TRUE,SUM($I16:$I18,K34:K35,K44:K45),\"\")","v":{"$error":"#DIV/0!"}},null,{"$f":"IF(M28=TRUE,SUM($I16:$I18,M34:M35,M44:M45),\"\")","v":{"$error":"#DIV/0!"}},null,{"$f":"IF(O28=TRUE,SUM($I16:$I18,O34:O35,O44:O45),\"\")","v":{"$error":"#DIV/0!"}},null,{"$f":"IF(Q28=TRUE,SUM($I16:$I18,Q34:Q35,Q44:Q45),\"\")","v":{"$error":"#DIV/0!"}},null,{"$f":"IF(S28=TRUE,SUM($I16:$I18,S34:S35,S44:S45),\"\")","v":{"$error":"#DIV/0!"}}]
[null,null,null,null,"Variabele kost per kilometer",null,null,null,{"$f":"IF(I28=TRUE,SUM($I20:$I21,I39:I40,I47:I53)/CIRCUIT!$G13,\"\")","v":{"$error":"#DIV/0!"}},null,{"$f":"IF(K28=TRUE,SUM($I20:$I21,K39:K40,K47:K53)/CIRCUIT!$G13,\"\")","v":{"$error":"#DIV/0!"}},null,{"$f":"IF(M28=TRUE,SUM($I20:$I21,M39:M40,M47:M53)/CIRCUIT!$G13,\"\")","v":{"$error":"#DIV/0!"}},null,{"$f":"IF(O28=TRUE,SUM($I20:$I21,O39:O40,O47:O53)/CIRCUIT!$G13,\"\")","v":{"$error":"#DIV/0!"}},null,{"$f":"IF(Q28=TRUE,SUM($I20:$I21,Q39:Q40,Q47:Q53)/CIRCUIT!$G13,\"\")","v":{"$error":"#DIV/0!"}},null,{"$f":"IF(S28=TRUE,SUM($I20:$I21,S39:S40,S47:S53)/CIRCUIT!$G13,\"\")","v":{"$error":"#DIV/0!"}}]
[null,null,null,null,null,"Variabele kost per uur",null,null,{"$f":"IF(I28=TRUE,$I22/(CIRCUIT!$G15*24),\"\")","v":{"$error":"#VALUE!"}},null,{"$f":"IF(K28=TRUE,$I22/(CIRCUIT!$G15*24),\"\")","v":{"$error":"#VALUE!"}},null,{"$f":"IF(M28=TRUE,$I22/(CIRCUIT!$G15*24),\"\")","v":{"$error":"#VALUE!"}},null,{"$f":"IF(O28=TRUE,$I22/(CIRCUIT!$G15*24),\"\")","v":{"$error":"#VALUE!"}},null,{"$f":"IF(Q28=TRUE,$I22/(CIRCUIT!$G15*24),\"\")","v":{"$error":"#VALUE!"}},null,{"$f":"IF(S28=TRUE,$I22/(CIRCUIT!$G15*24),\"\")","v":{"$error":"#VALUE!"}}]
[]
[null,null,null,null,null,null,null,null,null,null,"Procentuele marge","Procentuele marge: ",0.05,null,null,null," Forfaitaire marge","Forfaitaire marge: ",null,null,null,null,true]
[]
[null,null,null,"KOST + MARGE","Totale offerteprijs voor 1 dag",null,null,null,{"$f":"IF(I$28=TRUE,IF($W$62=TRUE,(I57*(1+$M$62)),(IF($X$62=TRUE,(I57+$S$62),\"\"))),\"\")","v":{"$error":"#DIV/0!"}},null,{"$f":"IF(K$28=TRUE,IF($W$62=TRUE,(K57*(1+$M$62)),(IF($X$62=TRUE,(K57+$S$62),\"\"))),\"\")","v":{"$error":"#DIV/0!"}},null,{"$f":"IF(M$28=TRUE,IF($W$62=TRUE,(M57*(1+$M$62)),(IF($X$62=TRUE,(M57+$S$62),\"\"))),\"\")","v":{"$error":"#DIV/0!"}},null,{"$f":"IF(O$28=TRUE,IF($W$62=TRUE,(O57*(1+$M$62)),(IF($X$62=TRUE,(O57+$S$62),\"\"))),\"\")","v":{"$error":"#DIV/0!"}},null,{"$f":"IF(Q$28=TRUE,IF($W$62=TRUE,(Q57*(1+$M$62)),(IF($X$62=TRUE,(Q57+$S$62),\"\"))),\"\")","v":{"$error":"#DIV/0!"}},null,{"$f":"IF(S$28=TRUE,IF($W$62=TRUE,(S57*(1+$M$62)),(IF($X$62=TRUE,(S57+$S$62),\"\"))),\"\")","v":{"$error":"#DIV/0!"}}]
[null,null,null,null,"Totale offerteprijs per dag",null,null,null,{"$f":"IF(I$28=TRUE,IF($W$62=TRUE,(I58*(1+$M$62)),\"\"),\"\")","v":{"$error":"#DIV/0!"}},null,{"$f":"IF(K$28=TRUE,IF($W$62=TRUE,(K58*(1+$M$62)),\"\"),\"\")","v":{"$error":"#DIV/0!"}},null,{"$f":"IF(M$28=TRUE,IF($W$62=TRUE,(M58*(1+$M$62)),\"\"),\"\")","v":{"$error":"#DIV/0!"}},null,{"$f":"IF(O$28=TRUE,IF($W$62=TRUE,(O58*(1+$M$62)),\"\"),\"\")","v":{"$error":"#DIV/0!"}},null,{"$f":"IF(Q$28=TRUE,IF($W$62=TRUE,(Q58*(1+$M$62)),\"\"),\"\")","v":{"$error":"#DIV/0!"}},null,{"$f":"IF(S$28=TRUE,IF($W$62=TRUE,(S58*(1+$M$62)),\"\"),\"\")","v":{"$error":"#DIV/0!"}}]
[null,null,null,null,"Totale offerteprijs per kilometer",null,null,null,{"$f":"IF(I$28=TRUE,IF($W$62=TRUE,(I59*(1+$M$62)),\"\"),\"\")","v":{"$error":"#DIV/0!"}},null,{"$f":"IF(K$28=TRUE,IF($W$62=TRUE,(K59*(1+$M$62)),\"\"),\"\")","v":{"$error":"#DIV/0!"}},null,{"$f":"IF(M$28=TRUE,IF($W$62=TRUE,(M59*(1+$M$62)),\"\"),\"\")","v":{"$error":"#DIV/0!"}},null,{"$f":"IF(O$28=TRUE,IF($W$62=TRUE,(O59*(1+$M$62)),\"\"),\"\")","v":{"$error":"#DIV/0!"}},null,{"$f":"IF(Q$28=TRUE,IF($W$62=TRUE,(Q59*(1+$M$62)),\"\"),\"\")","v":{"$error":"#DIV/0!"}},null,{"$f":"IF(S$28=TRUE,IF($W$62=TRUE,(S59*(1+$M$62)),\"\"),\"\")","v":{"$error":"#DIV/0!"}}]
[null,null,null,null,null,"Totale offerteprijs per uur",null,null,{"$f":"IF(I$28=TRUE,IF($W$62=TRUE,(I60*(1+$M$62)),\"\"),\"\")","v":{"$error":"#VALUE!"}},null,{"$f":"IF(K$28=TRUE,IF($W$62=TRUE,(K60*(1+$M$62)),\"\"),\"\")","v":{"$error":"#VALUE!"}},null,{"$f":"IF(M$28=TRUE,IF($W$62=TRUE,(M60*(1+$M$62)),\"\"),\"\")","v":{"$error":"#VALUE!"}},null,{"$f":"IF(O$28=TRUE,IF($W$62=TRUE,(O60*(1+$M$62)),\"\"),\"\")","v":{"$error":"#VALUE!"}},null,{"$f":"IF(Q$28=TRUE,IF($W$62=TRUE,(Q60*(1+$M$62)),\"\"),\"\")","v":{"$error":"#VALUE!"}},null,{"$f":"IF(S$28=TRUE,IF($W$62=TRUE,(S60*(1+$M$62)),\"\"),\"\")","v":{"$error":"#VALUE!"}}]

{"sheet":"Bijlage 4bis","index":7,"n_rows":30,"n_cols":32,"rows_kept":30,"cut":false,"hidden":false,"merged":[[4,20,4,30],[5,9,8,9],[6,3,6,7],[7,3,7,7],[1,2,1,12],[2,14,5,14],[2,15,4,16],[2,17,4,17],[2,18,4,18],[15,3,15,7],[17,3,17,7],[9,3,9,7],[10,3,10,7],[11,3,11,7],[12,3,12,7],[13,3,13,7],[14,3,14,7]]}
[]
[null,null,"OVERBRENGING NAAR BIJLAGE 4bis"]
[null,null,null,null,null,null,null,null,null,null,null,null,null,null,"Bedrag inclusief marge","Proportionele margeverdeling",null,"Handmatige marge","Bedrag van gekozen voertuig"]
[null,null,"Kies het voertuig:","Kies de verdeling van de marge*: "]
[null,null,null,null,null,null,null,null,null,null,null,null,null,null,null,null,null,null,null,null,"Startbedragen uit tabblad \"Kostprijs en Verkoopprijs\""]
[null,null,null,null,null,null,null,null,null,{"$f":"IF(H25=1,\"\",IF(J19=1,\"\",\"Opgelet! Het totaal van de marge ≠ 100%!\"))","v":""},null,null,null,null,null,"proportie",null,null,null,null,"I",null,"K",null,"M",null,"O",null,"Q",null,"S"]
[null,null,"DAGPRIJS (1) IN CIJFERS",{"$f":"D11+D12+D13+D14+D15+D16+H17+D18","v":{"$error":"#DIV/0!"}},null,null,null,null,null,null,null,null,null,null,null,null,null,null,{"$f":"IF(D$25=1,U7,IF(D$25=2,W7,IF(D$25=3,Y7,IF(D$25=4,AA7,IF(D$25=5,AC7,AE7)))))","v":{"$error":"#DIV/0!"}},null,{"$f":"'Kostprijs en Verkoopprijs'!I57","v":{"$error":"#DIV/0!"}},null,{"$f":"'Kostprijs en Verkoopprijs'!K57","v":{"$error":"#DIV/0!"}},null,{"$f":"'Kostprijs en Verkoopprijs'!M57","v":{"$error":"#DIV/0!"}},null,{"$f":"'Kostprijs en Verkoopprijs'!O57","v":{"$error":"#DIV/0!"}},null,{"$f":"'Kostprijs en Verkoopprijs'!Q57","v":{"$error":"#DIV/0!"}},null,{"$f":"'Kostprijs en Verkoopprijs'!S57","v":{"$error":"#DIV/0!"}}]
[null,null,"EN \nVOLUIT IN LETTERS","................................................................................................",null,null,null,null,null,null,null,null,null,null,null,null,null,null,{"$f":"IF(D$25=1,U8,IF(D$25=2,W8,IF(D$25=3,Y8,IF(D$25=4,AA8,IF(D$25=5,AC8,IF(D$25=6,AE8))))))","v":{"$error":"#DIV/0!"}},null,{"$f":"SUM('Kostprijs en Verkoopprijs'!I64)-SUM('Kostprijs en Verkoopprijs'!I57)","v":{"$error":"#DIV/0!"}},null,{"$f":"SUM('Kostprijs en Verkoopprijs'!K64)-SUM('Kostprijs en Verkoopprijs'!K57)","v":{"$error":"#DIV/0!"}},null,{"$f":"SUM('Kostprijs en Verkoopprijs'!M64)-SUM('Kostprijs en Verkoopprijs'!M57)","v":{"$error":"#DIV/0!"}},null,{"$f":"SUM('Kostprijs en Verkoopprijs'!O64)-SUM('Kostprijs en Verkoopprijs'!O57)","v":{"$error":"#DIV/0!"}},null,{"$f":"SUM('Kostprijs en Verkoopprijs'!Q64)-SUM('Kostprijs en Verkoopprijs'!Q57)","v":{"$error":"#DIV/0!"}},null,{"$f":"SUM('Kostprijs en Verkoopprijs'!S64)-SUM('Kostprijs en Verkoopprijs'!S57)","v":{"$error":"#DIV/0!"}},"Marge"]
[null,null,null,null,null,null,null,null,null,null,null,null,null,null,null,null,null,null,{"$f":"S7+S8","v":{"$error":"#DIV/0!"}}]
[null,null,"SAMENSTELLENDE \nELEMENTEN","BEREKENING",null,null,null,null,null,{"$f":"IF(H25=1,\"\",\"Verdeling marge\")","v":"Verdeling marge"},null,{"$f":"D7-S9","v":{"$error":"#DIV/0!"}}]
[null,null,"VERBRUIK:",{"$f":"ROUND(O11,2)","v":{"$error":"#DIV/0!"}},null,null,null,null,null,0.8,null,null,null,null,{"$f":"IF(H$25=1,S11+Q11,S11+R11)","v":{"$error":"#DIV/0!"}},{"$f":"S11/(S$7-S$17)","v":{"$error":"#DIV/0!"}},{"$f":"S$8*P11","v":{"$error":"#DIV/0!"}},{"$f":"J11*S$8","v":{"$error":"#DIV/0!"}},{"$f":"IF(D$25=1,U11,IF(D$25=2,W11,IF(D$25=3,Y11,IF(D$25=4,AA11,IF(D$25=5,AC11,AE11)))))","v":0},null,{"$f":"IF('Kostprijs en Verkoopprijs'!I48=\"\",0,SUM('Kostprijs en Verkoopprijs'!I48,'Kostprijs en Verkoopprijs'!I49,'Kostprijs en Verkoopprijs'!I50))","v":0},null,{"$f":"IF('Kostprijs en Verkoopprijs'!K48=\"\",0,SUM('Kostprijs en Verkoopprijs'!K48,'Kostprijs en Verkoopprijs'!K49,'Kostprijs en Verkoopprijs'!K50))","v":0},null,{"$f":"IF('Kostprijs en Verkoopprijs'!M48=\"\",0,SUM('Kostprijs en Verkoopprijs'!M48,'Kostprijs en Verkoopprijs'!M49,'Kostprijs en Verkoopprijs'!M50))","v":0},null,{"$f":"IF('Kostprijs en Verkoopprijs'!O48=\"\",0,SUM('Kostprijs en Verkoopprijs'!O48,'Kostprijs en Verkoopprijs'!O49,'Kostprijs en Verkoopprijs'!O50))","v":0},null,{"$f":"IF('Kostprijs en Verkoopprijs'!Q48=\"\",0,SUM('Kostprijs en Verkoopprijs'!Q48,'Kostprijs en Verkoopprijs'!Q49,'Kostprijs en Verkoopprijs'!Q50))","v":0},null,{"$f":"IF('Kostprijs en Verkoopprijs'!S48=\"\",0,SUM('Kostprijs en Verkoopprijs'!S48,'Kostprijs en Verkoopprijs'!S49,'Kostprijs en Verkoopprijs'!S50))","v":0}]
[null,null,"BANDEN:",{"$f":"ROUND(O12,2)","v":{"$error":"#DIV/0!"}},null,null,null,null,null,null,null,null,null,null,{"$f":"IF(H$25=1,S12+Q12,S12+R12)","v":{"$error":"#DIV/0!"}},{"$error":"#DIV/0!"},{"$f":"S$8*P12","v":{"$error":"#DIV/0!"}},{"$error":"#DIV/0!"},{"$error":"#DIV/0!"},null,{"$f":"'Kostprijs en Verkoopprijs'!I51","v":{"$error":"#DIV/0!"}},null,{"$f":"'Kostprijs en Verkoopprijs'!K51","v":{"$error":"#DIV/0!"}},null,{"$f":"'Kostprijs en Verkoopprijs'!M51","v":{"$error":"#DIV/0!"}},null,{"$f":"'Kostprijs en Verkoopprijs'!O51","v":{"$error":"#DIV/0!"}},null,{"$f":"'Kostprijs en Verkoopprijs'!Q51","v":{"$error":"#DIV/0!"}},null,{"$f":"'Kostprijs en Verkoopprijs'!S51","v":{"$error":"#DIV/0!"}}]
[null,null,"ONDERHOUD:",{"$f":"ROUND(O13,2)","v":{"$error":"#DIV/0!"}},null,null,null,null,null,null,null,null,null,null,{"$error":"#DIV/0!"},{"$f":"S13/(S$7-S$17)","v":{"$error":"#DIV/0!"}},{"$error":"#DIV/0!"},{"$error":"#DIV/0!"},{"$error":"#DIV/0!"},null,{"$f":"'Kostprijs en Verkoopprijs'!I52","v":{"$error":"#DIV/0!"}},null,{"$f":"'Kostprijs en Verkoopprijs'!K52","v":{"$error":"#DIV/0!"}},null,{"$f":"'Kostprijs en Verkoopprijs'!M52","v":{"$error":"#DIV/0!"}},null,{"$f":"'Kostprijs en Verkoopprijs'!O52","v":{"$error":"#DIV/0!"}},null,{"$f":"'Kostprijs en Verkoopprijs'!Q52","v":{"$error":"#DIV/0!"}},null,{"$f":"'Kostprijs en Verkoopprijs'!S52","v":{"$error":"#DIV/0!"}}]
[null,null,"AFSCHRIJVINGEN-INTERESTEN:",{"$f":"ROUND(O14,2)","v":{"$error":"#DIV/0!"}},null,null,null,null,null,null,null,null,null,null,{"$error":"#DIV/0!"},{"$error":"#DIV/0!"},{"$error":"#DIV/0!"},{"$error":"#DIV/0!"},{"$error":"#DIV/0!"},null,{"$f":"IF('Kostprijs en Verkoopprijs'!$X$6=1,SUM('Kostprijs en Verkoopprijs'!I34,'Kostprijs en Verkoopprijs'!I35),SUM('Kostprijs en Verkoopprijs'!I39,'Kostprijs en Verkoopprijs'!I40))","v":{"$error":"#DIV/0!"}},null,{"$f":"IF('Kostprijs en Verkoopprijs'!$X$6=1,SUM('Kostprijs en Verkoopprijs'!K34,'Kostprijs en Verkoopprijs'!K35),SUM('Kostprijs en Verkoopprijs'!K39,'Kostprijs en Verkoopprijs'!K40))","v":{"$error":"#DIV/0!"}},null,{"$f":"IF('Kostprijs en Verkoopprijs'!$X$6=1,SUM('Kostprijs en Verkoopprijs'!M34,'Kostprijs en Verkoopprijs'!M35),SUM('Kostprijs en Verkoopprijs'!M39,'Kostprijs en Verkoopprijs'!M40))","v":{"$error":"#DIV/0!"}},null,{"$f":"IF('Kostprijs en Verkoopprijs'!$X$6=1,SUM('Kostprijs en Verkoopprijs'!O34,'Kostprijs en Verkoopprijs'!O35),SUM('Kostprijs en Verkoopprijs'!O39,'Kostprijs en Verkoopprijs'!O40))","v":{"$error":"#DIV/0!"}},null,{"$f":"IF('Kostprijs en Verkoopprijs'!$X$6=1,SUM('Kostprijs en Verkoopprijs'!Q34,'Kostprijs en Verkoopprijs'!Q35),SUM('Kostprijs en Verkoopprijs'!Q39,'Kostprijs en Verkoopprijs'!Q40))","v":{"$error":"#DIV/0!"}},null,{"$f":"IF('Kostprijs en Verkoopprijs'!$X$6=1,SUM('Kostprijs en Verkoopprijs'!S34,'Kostprijs en Verkoopprijs'!S35),SUM('Kostprijs en Verkoopprijs'!S39,'Kostprijs en Verkoopprijs'!S40))","v":{"$error":"#DIV/0!"}}]
[null,null,"GARAGE:",{"$f":"ROUND(O15,2)","v":{"$error":"#DIV/0!"}},null,null,null,null,null,0.2,null,null,null,null,{"$f":"IF(H$25=1,S15+Q15,S15+R15)","v":{"$error":"#DIV/0!"}},{"$error":"#DIV/0!"},{"$error":"#DIV/0!"},{"$error":"#DIV/0!"},{"$error":"#DIV/0!"},null,{"$f":"IF('Kostprijs en Verkoopprijs'!$X$7=2,'Kostprijs en Verkoopprijs'!$I$20,'Kostprijs en Verkoopprijs'!$I$16)","v":{"$error":"#DIV/0!"}},null,{"$f":"IF('Kostprijs en Verkoopprijs'!$X$7=2,'Kostprijs en Verkoopprijs'!$I$20,'Kostprijs en Verkoopprijs'!$I$16)","v":{"$error":"#DIV/0!"}},null,{"$f":"IF('Kostprijs en Verkoopprijs'!$X$7=2,'Kostprijs en Verkoopprijs'!$I$20,'Kostprijs en Verkoopprijs'!$I$16)","v":{"$error":"#DIV/0!"}},null,{"$f":"IF('Kostprijs en Verkoopprijs'!$X$7=2,'Kostprijs en Verkoopprijs'!$I$20,'Kostprijs en Verkoopprijs'!$I$16)","v":{"$error":"#DIV/0!"}},null,{"$f":"IF('Kostprijs en Verkoopprijs'!$X$7=2,'Kostprijs en Verkoopprijs'!$I$20,'Kostprijs en Verkoopprijs'!$I$16)","v":{"$error":"#DIV/0!"}},null,{"$f":"IF('Kostprijs en Verkoopprijs'!$X$7=2,'Kostprijs en Verkoopprijs'!$I$20,'Kostprijs en Verkoopprijs'!$I$16)","v":{"$error":"#DIV/0!"}}]
[null,null,"VERZEKERINGEN:",{"$error":"#DIV/0!"},null,null,null,null,null,null,null,null,null,null,{"$error":"#DIV/0!"},{"$error":"#DIV/0!"},{"$f":"S$8*P16","v":{"$error":"#DIV/0!"}},{"$error":"#DIV/0!"},{"$error":"#DIV/0!"},null,{"$f":"IF('Kostprijs en Verkoopprijs'!$X$8=1,'Kostprijs en Verkoopprijs'!I44,'Kostprijs en Verkoopprijs'!I47)","v":{"$error":"#DIV/0!"}},null,{"$f":"IF('Kostprijs en Verkoopprijs'!$X$8=1,'Kostprijs en Verkoopprijs'!K44,'Kostprijs en Verkoopprijs'!K47)","v":{"$error":"#DIV/0!"}},null,{"$f":"IF('Kostprijs en Verkoopprijs'!$X$8=1,'Kostprijs en Verkoopprijs'!M44,'Kostprijs en Verkoopprijs'!M47)","v":{"$error":"#DIV/0!"}},null,{"$f":"IF('Kostprijs en Verkoopprijs'!$X$8=1,'Kostprijs en Verkoopprijs'!O44,'Kostprijs en Verkoopprijs'!O47)","v":{"$error":"#DIV/0!"}},null,{"$f":"IF('Kostprijs en Verkoopprijs'!$X$8=1,'Kostprijs en Verkoopprijs'!Q44,'Kostprijs en Verkoopprijs'!Q47)","v":{"$error":"#DIV/0!"}},null,{"$f":"IF('Kostprijs en Verkoopprijs'!$X$8=1,'Kostprijs en Verkoopprijs'!S44,'Kostprijs en Verkoopprijs'!S47)","v":{"$error":"#DIV/0!"}}]
[null,null,"RIJDEND PERSONEEL:\n(vul het aantal minuten in) (2)",{"$f":"ROUND(U17/F17*60,0)","v":{"$error":"#VALUE!"}},"minuten x ",22.74,"per uur (3) =",{"$f":"IF(D17<=E20,E20*(F17/60),D17*(F17/60))","v":{"$error":"#VALUE!"}},null,0,null,null,null,null,{"$error":"#VALUE!"},{"$error":"#VALUE!"},{"$error":"#DIV/0!"},{"$error":"#DIV/0!"},{"$error":"#VALUE!"},null,{"$f":"'Kostprijs en Verkoopprijs'!$I$22","v":{"$error":"#VALUE!"}},null,{"$f":"'Kostprijs en Verkoopprijs'!$I$22","v":{"$error":"#VALUE!"}},null,{"$f":"'Kostprijs en Verkoopprijs'!$I$22","v":{"$error":"#VALUE!"}},null,{"$f":"'Kostprijs en Verkoopprijs'!$I$22","v":{"$error":"#VALUE!"}},null,{"$f":"'Kostprijs en Verkoopprijs'!$I$22","v":{"$error":"#VALUE!"}},null,{"$f":"'Kostprijs en Verkoopprijs'!$I$22","v":{"$error":"#VALUE!"}}]
[null,null,"ANDERE KOSTEN DAN HIERBOVEN VERMELD:",{"$f":"ROUND(O18,2)","v":{"$error":"#DIV/0!"}},null,null,null,null,null,null,null,{"$f":"D17-CIRCUIT!G15*24*60","v":{"$error":"#VALUE!"}},null,null,{"$error":"#DIV/0!"},{"$error":"#DIV/0!"},{"$error":"#DIV/0!"},{"$error":"#DIV/0!"},{"$error":"#DIV/0!"},null,{"$f":"SUM('Kostprijs en Verkoopprijs'!$I$17,'Kostprijs en Verkoopprijs'!$I$18,'Kostprijs en Verkoopprijs'!$I$21,'Kostprijs en Verkoopprijs'!I45,'Kostprijs en Verkoopprijs'!I53)","v":{"$error":"#DIV/0!"}},null,{"$f":"SUM('Kostprijs en Verkoopprijs'!$I$17,'Kostprijs en Verkoopprijs'!$I$18,'Kostprijs en Verkoopprijs'!$I$21,'Kostprijs en Verkoopprijs'!K45,'Kostprijs en Verkoopprijs'!K53)","v":{"$error":"#DIV/0!"}},null,{"$f":"SUM('Kostprijs en Verkoopprijs'!$I$17,'Kostprijs en Verkoopprijs'!$I$18,'Kostprijs en Verkoopprijs'!$I$21,'Kostprijs en Verkoopprijs'!M45,'Kostprijs en Verkoopprijs'!M53)","v":{"$error":"#DIV/0!"}},null,{"$f":"SUM('Kostprijs en Verkoopprijs'!$I$17,'Kostprijs en Verkoopprijs'!$I$18,'Kostprijs en Verkoopprijs'!$I$21,'Kostprijs en Verkoopprijs'!O45,'Kostprijs en Verkoopprijs'!O53)","v":{"$error":"#DIV/0!"}},null,{"$f":"SUM('Kostprijs en Verkoopprijs'!$I$17,'Kostprijs en Verkoopprijs'!$I$18,'Kostprijs en Verkoopprijs'!$I$21,'Kostprijs en Verkoopprijs'!Q45,'Kostprijs en Verkoopprijs'!Q53)","v":{"$error":"#DIV/0!"}},null,{"$f":"SUM('Kostprijs en Verkoopprijs'!$I$17,'Kostprijs en Verkoopprijs'!$I$18,'Kostprijs en Verkoopprijs'!$I$21,'Kostprijs en Verkoopprijs'!S45,'Kostprijs en Verkoopprijs'!S53)","v":{"$error":"#DIV/0!"}}]
[null,null,null,null,null,null,null,null,null,{"$f":"IF(H25=2,SUM(J11:J16,J18),\"\")","v":1}]
[null,null,null,null,180,60]
[null,null,"* Marge wordt gespreid over alle posten, m.u.v. het rijdend personeel"]
[]
[]
[]
[null,null,{"$f":"Voertuig!H8","v":"Mercedes Sprinter 23pl"},1,null,"Automatisch (proportioneel)",2,2]
[null,null,{"$f":"Voertuig!J8","v":"Iveco 36pl"},null,null,"Handmatig"]
[null,null,{"$f":"Voertuig!L8","v":"Iveco 38pl"}]
[null,null,{"$f":"Voertuig!N8","v":"Mercedes Atego 40pl"}]
[null,null,{"$f":"Voertuig!P8","v":"Mercedes Intouro 55pl"}]
[null,null,{"$f":"Voertuig!R8","v":"Mercedes Intouro 65pl"}]